Cogmind - Beta 15 @@@ ROGUE MODE // 2025.06.05 @ 18:07:30 Player: Olafz Result: Self-destructed Performance ------------- Evolutions (2) 1000 Regions Visited (4) 800 Robots Destroyed (40) 200 Value Destroyed (950) 950 Prototype IDs (0) 0 Alien Tech Used (0) 0 Bonus (0) 0 TOTAL SCORE: 2950 Bonus ------- None Cogmind --------- Core Integrity 550/550 Matter 280/300 Energy 221/250 System Corruption 0% Temperature Cool (0) Movement Rolling (155) Ox5 Location -8/Materials Parts ------- > --- POWER (1) -------- Ion Engine > --- PROPULSION (4) --- Light Treads Light Treads Wheel > --- UTILITY (4) ------ Cooling System High-capacity Storage Unit Particle Charger > --- WEAPON (2) ------- Field Laser Particle Cannon > --- INVENTORY (20) --- Light Ion Engine Improved Ion Engine Improved Ion Engine Improved Ion Engine Aluminum Leg Wheel Wheel Cooling System Cooling System Structural Scanner Improved Terrain Scanner Terrain Scan Processor Beam Rifle Beam Rifle Beam Rifle Particle Cannon Light Assault Rifle Rocket Launcher Peak State ------------ > --- POWER ------------ Ion Engine > --- PROPULSION ------- Light Treads Light Treads Wheel > --- UTILITY ---------- Cooling System High-capacity Storage Unit Particle Charger > --- WEAPON ----------- Field Laser Particle Cannon > --- INVENTORY -------- Light Ion Engine Improved Ion Engine Improved Ion Engine Improved Ion Engine Aluminum Leg Wheel Wheel Cooling System Cooling System Structural Scanner Improved Terrain Scanner Terrain Scan Processor Beam Rifle Beam Rifle Beam Rifle Particle Cannon Light Assault Rifle Rocket Launcher [Rating: 18] Favorites ----------- Power Improved Ion Engine Engine Improved Ion Engine Propulsion Aluminum Leg Treads Light Treads Leg Aluminum Leg Wheel Wheel Utility Cooling System Device Cooling System Storage High-capacity Storage Unit Weapon Beam Rifle Energy Gun Beam Rifle Energy Cannon Particle Cannon Ballistic Gun Light Assault Rifle Build | -11 -10 -9 -9 -8 ------- Run | Yrd Mat Mat Min Mat Slots Evolved 4 | . . 2 . 2 Power . | . . . . . Propulsion 2 | . . 1 . 1 Utility 2 | . . 1 . 1 Weapon . | . . . . . Parts Attached 23 | 6 6 9 . 2 Power 3 | 1 1 1 . . Engine 3 | 1 1 1 . . Core . | . . . . . Reactor . | . . . . . Propulsion 8 | 2 1 5 . . Treads 2 | . . 2 . . Leg 3 | 2 1 . . . Wheel 3 | . . 3 . . Hover . | . . . . . Flight . | . . . . . Utility 5 | 1 2 1 . 1 Device 3 | . 1 1 . 1 Storage 2 | 1 1 . . . Processor . | . . . . . Hackware . | . . . . . Protection . | . . . . . Artifact . | . . . . . Weapon 7 | 2 2 2 . 1 Energy Gun 5 | 1 2 1 . 1 Energy Cannon 1 | . . 1 . . Ballistic Gun 1 | 1 . . . . Ballistic Cannon . | . . . . . Launcher . | . . . . . Special Weapon . | . . . . . Impact Weapon . | . . . . . Slashing Weapon . | . . . . . Piercing Weapon . | . . . . . Special Melee Weapon . | . . . . . Unidentified Prototypes . | . . . . . Parts Lost 8 | . . 8 . . Power 1 | . . 1 . . Propulsion 4 | . . 4 . . Utility 1 | . . 1 . . Weapon 2 | . . 2 . . Highest Loss Streak 5 | . . 5 . . To Critical Strikes . | . . . . . Average Backups 13 | . 10 16 17 17 Power 3 | . 2 4 4 4 Propulsion 1 | . . 1 3 3 Utility 4 | . 3 5 5 5 Weapon 4 | . 4 5 5 5 Tool/Special . | . . . . . Unused Backups 14 | . . . . 14 Power 3 | . . . . 3 Propulsion 2 | . . . . 2 Utility 5 | . . . . 5 Weapon 4 | . . . . 4 Tool/Special . | . . . . . Average Slot Usage (%) 86 | . 99 79 88 75 Engine 11 | . 14 10 11 9 Treads 5 | . . 5 22 18 Leg 15 | . 28 12 . . Wheel 5 | . . 7 11 9 Device 11 | . 13 10 11 12 Storage 11 | . 14 11 11 9 Energy Gun 18 | . 27 15 11 9 Energy Cannon 5 | . . 6 11 9 Peak Build Rating 18 | 6 13 15 13 18 Average Rating 12 | 4 12 13 13 15 On Entrance 9 | . 6 13 13 13 Naked Turns . | . . . . . Heaviest Build 57 | 13 55 56 54 57 Greatest Support 40 | 20 20 40 10 10 Greatest Overweight (x) 17 | . 2 17 5 5 Average Overweight (x) 3 | . 1 4 5 5 Largest Inventory Capacity 20 | 8 20 20 20 20 Average Capacity 18 | 6 16 20 20 20 Most Carried 18 | 1 14 18 17 18 Average Carried 14 | . 10 16 17 17 Final Capacity 20 | 8 20 20 20 20 Final Carried 18 | 1 14 17 17 18 Class Distribution -------------------- 100% | Mutant Dominant Class ---------------- Mutant | -10/Materials Mutant | -9/Materials Mutant | -9/Mines Mutant | -8/Materials Resources | -11 -10 -9 -9 -8 ----------- Run | Yrd Mat Mat Min Mat Matter Collected 420 | 132 188 100 . . Remotely . | . . . . . Salvage Created 1399 | . 370 813 216 . Parts 88 | . 16 57 15 . Haulers Intercepted 1 | . 1 . . . Recyclers Shooed 1 | . . 1 . . Parts Field Recycled . | . . . . . Retrieved Matter . | . . . . . Parts Self-Destructed . | . . . . . Prevented . | . . . . . Kills | -11 -10 -9 -9 -8 ------- Run | Yrd Mat Mat Min Mat Combat Hostiles Destroyed 28 | . 5 16 7 . Guns 13 | . 4 6 3 . Cannons 14 | . . 10 4 . AOE 1 | . 1 . . . Classes Destroyed 9 | . 4 5 . . Worker 4 | . . 4 . . Builder 2 | . . 2 . . Tunneler 2 | . . 2 . . Hauler 1 | . 1 . . . Recycler 1 | . 1 . . . Watcher 2 | . 1 1 . . Swarmer 7 | . . 4 3 . Grunt 16 | . 5 7 4 . Sentry 5 | . . 5 . . Best Kill Streak 6 | . 4 6 5 . Combat Bots Only 5 | . 3 5 5 . Max Kills in Single Turn 1 | . 1 1 1 . Gunslinging . | . . . . . Exploded 1 | . 1 . . . Melee . | . . . . . Uniques/NPCs Destroyed . | . . . . . Combat | -11 -10 -9 -9 -8 -------- Run | Yrd Mat Mat Min Mat Hostile Shots Fired 136 | . 24 98 14 . Missed 41 | . 8 28 5 . Hits 95 | . 16 70 9 . Projectile 95 | . 16 70 9 . Critical Strikes 3 | . . 3 . . Damage Taken 1081 | . 191 799 91 . Core 244 | . 12 202 30 . Absorbed by Shields . | . . . . . Core Remaining (%) 79 | 100 95 . 42 . Volleys Fired 84 | . 16 54 14 . Largest 2 | . 2 2 2 . Hottest 124 | . 112 124 124 . Shots Fired 158 | . 32 98 28 . Gun 113 | . 32 67 14 . Cannon 45 | . . 31 14 . Launcher . | . . . . . Special . | . . . . . Kinetic . | . . . . . Thermal 158 | . 32 98 28 . Explosive . | . . . . . Electromagnetic . | . . . . . Robot Hit Streak 17 | . 11 17 5 . Robot Miss Streak 3 | . 3 3 3 . Penetration Max . | . . . . . Secondary Targets 2 | . . 2 . . Max Gunslinging Chain 1 | . . 1 . . Shots Hit Robots 100 | . 19 68 13 . Core Hits 53 | . 16 29 8 . Critical Kills . | . . . . . Critical Parts Destroyed . | . . . . . Critical Strikes 4 | . 2 1 1 . Burn 4 | . 2 1 1 . Melee Attacks . | . . . . . Impact . | . . . . . Slashing . | . . . . . Piercing . | . . . . . Sneak Attacks . | . . . . . Combat Hostiles . | . . . . . Follow-up Attacks . | . . . . . Damage Inflicted 1678 | . 379 1075 224 . Guns 1043 | . 276 664 103 . Cannons 532 | . . 411 121 . Explosions 103 | . 103 . . . Melee . | . . . . . Ramming . | . . . . . Kinetic . | . . . . . Thermal 1575 | . 276 1075 224 . Explosive . | . . . . . Electromagnetic 103 | . 103 . . . Impact . | . . . . . Slashing . | . . . . . Piercing . | . . . . . Highest Corruption . | . . . . . Average Corruption . | . . . . . Corruption Purged . | . . . . . Corruption Blocked . | . . . . . Overload Shots . | . . . . . Overflow Damage . | . . . . . Projectiles . | . . . . . Explosions . | . . . . . Melee . | . . . . . Knockbacks . | . . . . . Impact . | . . . . . Kinetic . | . . . . . Secondary . | . . . . . Self-Inflicted Damage . | . . . . . Shots . | . . . . . Rammed . | . . . . . Targets Rammed . | . . . . . Kicked . | . . . . . Crushed . | . . . . . Highest Temperature 20 | . 11 20 2 . Average Temperature 7 | . 5 10 2 . Received Heat Transfer 465 | . 108 315 42 . Siege Activations . | . . . . . Martial Activations . | . . . . . Shielding Activations . | . . . . . Robots Disrupted . | . . . . . Combat Hostiles . | . . . . . Robots Corrupted . | . . . . . Combat Hostiles . | . . . . . Parts Fried . | . . . . . Impact Corruptions . | . . . . . Robots Melted . | . . . . . Combat Hostiles . | . . . . . Parts Melted 8 | . 2 5 1 . Heat Transferred 3922 | . 851 2516 555 . Parts Sabotaged . | . . . . . Parts Stolen . | . . . . . Parts Stripped . | . . . . . Power Chain Reactions . | . . . . . Alert | -11 -10 -9 -9 -8 ------- Run | Yrd Mat Mat Min Mat Maximum Alert Level . | . . . . . Low Security (%) 100 | 100 100 100 100 100 Level 1 . | . . . . . Level 2 . | . . . . . Level 3 . | . . . . . Level 4 . | . . . . . Level 5 . | . . . . . High Security . | . . . . . Max Security . | . . . . . Peak Influence 164 | . 87 164 149 57 Initial 57 | . . 27 51 57 Average 70 | . 26 97 68 57 Influence Increases 832 | . 181 493 158 . Destroy 0b10 Robot/C 560 | . 100 320 140 . Destroy 0b10 Robot/NC 60 | . 15 45 . . Destroy Leader 126 | . 34 82 10 . Allied During Kill 8 | . . . 8 . Disable Machine 45 | . 30 15 . . Destroy Structure 3 | . 2 1 . . Lose Combat Pursuer 30 | . . 30 . . Influence Decreases 775 | . 114 429 140 92 Entered New Map 212 | . . 40 80 92 Time Decay 483 | . 114 309 60 . Lost Part 80 | . . 80 . . Squads Dispatched 5 | . 2 3 . . Investigation 3 | . 2 1 . . Extermination . | . . . . . Reinforcement 2 | . . 2 . . Assault . | . . . . . Garrison . | . . . . . Intercept . | . . . . . Searches Triggered . | . . . . . Construction Impeded . | . . . . . Haulers Reinforced . | . . . . . Active Scanning Responses . | . . . . . Cargo Convoy Interrupts . | . . . . . Stealth | -11 -10 -9 -9 -8 --------- Run | Yrd Mat Mat Min Mat Distress Signals 4 | . . 4 . . Communications Jammed . | . . . . . Distress Signals . | . . . . . Times Spotted 34 | . 6 21 7 . Peak Tracking Total 4 | . 3 4 3 . Tactical Retreats 2 | . . 2 . . Traps | -11 -10 -9 -9 -8 ------- Run | Yrd Mat Mat Min Mat Traps Triggered 2 | . 1 1 . . Indirectly . | . . . . . Trap Hack Attempts . | . . . . . Triggered . | . . . . . Disarmed . | . . . . . Reprogrammed . | . . . . . Reused . | . . . . . Traps Extracted . | . . . . . Installed . | . . . . . Triggered . | . . . . . Machines | -11 -10 -9 -9 -8 ---------- Run | Yrd Mat Mat Min Mat Machines Disabled 3 | . 2 1 . . Max in Single Turn 1 | . 1 1 . . Machines Repaired . | . . . . . Machines Dismantled . | . . . . . Machines Sabotaged . | . . . . . Overloaded Fab Kills . | . . . . . Hacking | -11 -10 -9 -9 -8 --------- Run | Yrd Mat Mat Min Mat Machines Accessed 1 | . 1 . . . Terminals 1 | . 1 . . . Fabricators . | . . . . . Repair Stations . | . . . . . Recycling Units . | . . . . . Scanalyzers . | . . . . . Garrison Access . | . . . . . Total Hacks 3 | . 3 . . . Successful 1 | . 1 . . . Failed 2 | . 2 . . . Catastrophic 1 | . 1 . . . Database Lockouts . | . . . . . Manual 3 | . 3 . . . Terminals 3 | . 3 . . . Fabricators . | . . . . . Repair Stations . | . . . . . Recycling Units . | . . . . . Scanalyzers . | . . . . . Garrison Access . | . . . . . Terminal Hacks . | . . . . . Fabricator Hacks . | . . . . . Repair Station Hacks . | . . . . . Recycling Unit Hacks . | . . . . . Scanalyzer . | . . . . . Garrison Access Hacks . | . . . . . Unauthorized Hacks 1 | . 1 . . . Terminals 1 | . 1 . . . Botnet 1 | . 1 . . . Fabricators . | . . . . . Repair Stations . | . . . . . Recycling Units . | . . . . . Scanalyzers . | . . . . . Garrison Access . | . . . . . Data Cores Recovered . | . . . . . Used . | . . . . . Hacking Detections 1 | . 1 . . . Full Trace Events 1 | . 1 . . . Feedback Events . | . . . . . Feedback Blocked . | . . . . . Robot Schematics Acquired . | . . . . . Robots Built . | . . . . . Authchips . | . . . . . Time . | . . . . . Total Robot Build Rating . | . . . . . Part Schematics Acquired . | . . . . . Parts Built . | . . . . . Authchips . | . . . . . Time . | . . . . . Total Part Build Rating . | . . . . . Parts Repaired . | . . . . . Time . | . . . . . Parts Recycled . | . . . . . Recycled Matter . | . . . . . Retrieved Matter . | . . . . . Retrieved Components . | . . . . . Parts Scanalyzed . | . . . . . Part Schematics Acquired . | . . . . . Parts Damaged . | . . . . . Bothacking | -11 -10 -9 -9 -8 ------------ Run | Yrd Mat Mat Min Mat Used RIF Installer . | . . . . . Robots Hacked . | . . . . . Non-combat . | . . . . . Combat . | . . . . . Robot Hacks Applied . | . . . . . Relay Couplers Released . | . . . . . Fabnet Peak Effective % . | . . . . . Robots Rewired . | . . . . . Allies Hacked . | . . . . . Hacks Repelled . | . . . . . Allies | -11 -10 -9 -9 -8 -------- Run | Yrd Mat Mat Min Mat Total Allies 1 | . . . 1 . Largest Group 1 | . . . 1 1 Highest-Rated Group 31 | . . . 31 31 Highest-Rated Ally 31 | . . . 31 31 Total Orders . | . . . . . Ally Attacks . | . . . . . Total Damage . | . . . . . Kills . | . . . . . Allies Corrupted . | . . . . . Allies Melted . | . . . . . Intel | -11 -10 -9 -9 -8 ------- Run | Yrd Mat Mat Min Mat Active Infowar (turns) . | . . . . . Robot Analysis Total . | . . . . . Derelict Logs Recovered . | . . . . . Drone Launches . | . . . . . Drone Recoveries . | . . . . . Exploration | -11 -10 -9 -9 -8 ------------- Run | Yrd Mat Mat Min Mat Turns Passed 1345 | 58 371 762 135 19 Spaces Moved 561 | 38 151 311 51 10 Core 6 | 3 . 3 . . Treads 7 | . . 7 . . Legs 223 | 35 151 37 . . Wheels 325 | . . 264 51 10 Hover . | . . . . . Flight . | . . . . . Fastest Speed 50 | 50 120 155 155 155 Average Speed 176 | 114 196 179 155 155 Slowest Speed 900 | 120 260 900 155 155 Overloaded Moves . | . . . . . Propulsion Burnouts . | . . . . . Robots Hopped . | . . . . . Potential Cave-ins . | . . . . . Cave-ins Triggered . | . . . . . Exploration Rate (%) 18 | 3 29 36 23 3 Regions Visited 4 Branch Regions 1 Pre-discovered Areas . | . . . . . Known Exits Taken . | . . . . . Unknown Exits Taken 4 | 1 1 1 1 . Scrap Searched . | . . . . . Spaces Dug . | . . . . . Terrain Destroyed . | . . . . . Melee . | . . . . . Projectile . | . . . . . AOE . | . . . . . Terrain Rammed . | . . . . . Walls Destroyed . | . . . . . Machines Disabled . | . . . . . Actions | -11 -10 -9 -9 -8 --------- Run | Yrd Mat Mat Min Mat Total 750 | 49 195 415 79 12 Wait 62 | 5 9 33 15 . Move 557 | 37 150 310 50 10 Hop . | . . . . . Pick Up 17 | 1 10 6 . . Fast Attach 15 | 6 3 5 . 1 Attach 5 | . . 5 . . Detach 3 | . 2 1 . . Swap 5 | . 3 1 . 1 Drop 2 | . 2 . . . Fire 84 | . 16 54 14 . Melee . | . . . . . Ram . | . . . . . Kick . | . . . . . Crush . | . . . . . Escape Stasis . | . . . . . Rewire . | . . . . . Trap . | . . . . . Miscellaneous . | . . . . . Route ------- -11/Scrapyard -10/Materials -9/Materials (discovered 2 exits: [*Mat] / [*Min]) -9/Mines -8/Materials History --------- Turn | Location | Event 4 | -11/Scrapyard | Discovered new exit (range 16) 59 | -11/Scrapyard | Entered Materials 317 | -10/Materials | Build established: Mutant 355 | -10/Materials | Discovered new exit (range 11) 430 | -10/Materials | Entered another Materials area 430 | -9/Materials | Evolved 2 slots: Propulsion x1, Utility x1 735 | -9/Materials | Discovered new exit (range 8) 792 | -9/Materials | Lost 3 parts (2n1w) 980 | -9/Materials | Lost 5 parts (1p2n1u1w) 1085 | -9/Materials | Core integrity fell below 50% 1178 | -9/Materials | Discovered new exit (range 10) 1192 | -9/Materials | Entered Mines 1195 | -9/Mines | Received a Mining Laser from a helpful Derelict 1231 | -9/Mines | Excavation squad dispatched 1231 | -9/Mines | A large section of the Mines collapsed 1306 | -9/Mines | Discovered new exit (range 9) 1327 | -9/Mines | Entered Materials 1327 | -8/Materials | Accompanied by 1 ally 1327 | -8/Materials | Evolved 2 slots: Propulsion x1, Utility x1 1346 | -8/Materials | Self-destructed Last Messages --------------- T6-6GC(g): "You're apparently new around these parts, I'll cover you." T6-6GC(g): "Mining lasers are a lot more useful than you might think..." T6-6GC(g) crushed by falling debris. ALERT: Suspicious cave-in, suspected derelict activity in mines. Dispatching escorted excavation squad. Aluminum Leg melted. G-34 Mercenary destroyed. R-06 Scavenger collects Aluminum Leg. R-06 Scavenger collects Heat Sink. S-10 Pest destroyed. EXIT=FOUND G-34 Mercenary destroyed. G-34 Mercenary suffers critical hit (Burn). K-01 Serf collects debris. G-34 Mercenary destroyed. K-01 Serf collects debris. PARAMETERS=PROPULSION+1,UTILITY+1 LOCATION=UNKNOWN GOAL=ESCAPE Acquired Particle Charger. Map ----- +----------------------------------------------------+ | ??????????????????????????????????????????????? | | ??????????????????????????????????????????????? | | ??????????????????????????????????????????????? | | ??????????????????????????????????????????????? | | ??????????????????????????????????????????????? | | ??????????????????????????????????????????????? | | ??????????????????????????????????????????????? | | ??????????????????????????????????????????????? | | ??????????????????????????????????????????????? | | ??????????????????????????????????????????????? | | ??????????????????????? s ????????????????????? | | ?????????????????????? ????????????????????? | | ??????????????????????# ????????????????????? | | ??????????????????????# ????????????????????? | | ??????????????????????# ????????????????????? | | ??????????????????????# ##########??????????? | | ??????????????????????# ???????????? | | ??????????????????????# ###?????????? | | ??????????????????????# "" ""#?????????? | | ??????????????????????# G" T"#?????????? | | ?????????????????????## "" ""??????????? | | ?????????????????????#" #???????????? | | ?????????????????????#T ####????????? | | ?????????????????????#" #????????? | | ??????????????????????# #????????? | | ??????????????????????# @ g #????????? | | ??????????????????????##" "###########????????? | | ???????????????????????#"T"#??????????????????? | | ???????????????????????#"""#??????????????????? | | ???????????????????????#####??????????????????? | | ??????????????????????????????????????????????? | | ??????????????????????????????????????????????? | | ??????????????????????????????????????????????? | | ??????????????????????????????????????????????? | | ??????????????????????????????????????????????? | | ??????????????????????????????????????????????? | | ??????????????????????????????????????????????? | | ??????????????????????????????????????????????? | | | | | | | | | | | | | | | | | | | | | | | | | +----------------------------------------------------+ Best States ------------- Heat Dissipation 53 Energy Generation 12 Energy Capacity 265 Matter Stores 300 Matter Capacity 300 Sight Range 16 Terrain Scan Density 10 Evasion (%) 55 Recoil Reduction 2 Particle Charging 15 Item Schematics ----------------- None Robot Schematics ------------------ None Fabricated ------------ Nothing Repaired ---------- Nothing Alien Tech Used ----------------- None Achievements -------------- None Challenges ------------ None Game ------ Seed MiningArmoredProtection Manual? 0 Play Time 00:10:42 Cumulative 267.3 hours Start 2025.06.05 @ 00:40:34 End 2025.06.05 @ 18:07:30 Sessions 3 Manual Loads 0 Difficulty Rogue Special Mode None Game No. 504 Rogue 502 Adventurer 2 Explorer 0 Win Type - Total 16 Types 11/0/1/3/1/0/0/0/0/0 Lore% 74 Gallery% 64 Achievement% 58 Wizard Run 0 Options --------- Layout 0 ASCII 0 Keyboard 1 Movement Numpad Keybinds 1 Fullscreen 2 Font 24/Smallcaps Map View 76x50 Zoom Use 0% Tactical HUD 1 Map Filters NONE Filters NONE Steam 1 RUN: f833fe00-6c4a-43fa-9afb-ec01306d0a63